Workbook

Sheet Foglio1
C2: AI DIRE 4-4-2
C3: Puntata | D3: 3500 | I3: Guadagno | J3: =+I72 -> 0 | K3: =+J3/D3 -> 0 | L3: Guadagno | M3: =+L72 -> 0
C4: Casa | D4: Ospite | E4: Giocata | F4: Quota | H4: Giocata 2 | I4: Quota | K4: Giocata 3 | L4: Quota | N4: Giocata 4 | O4: Quota
C5: Squadra A | D5: Squadra B | E5: Pari | F5: 1.9 | H5: Over 2,5 | I5: 1.6 | K5: Nogoal | L5: 1.8 | N5: Over 3,5 | O5: 2.5 | S5: 1 | T5: V
C6: Squadra C | D6: Squadra D | E6: Pari | F6: 1.9 | H6: Over 2,5 | I6: 1.6 | K6: Nogoal | L6: 1.8 | N6: Over 3,5 | O6: 2.5 | S6: X | T6: P
C7: Squadra E | D7: Squadra F | E7: Pari | F7: 1.9 | H7: Over 2,5 | I7: 1.6 | K7: Nogoal | L7: 1.8 | N7: Over 3,5 | O7: 2.5 | S7: 2 | T7: Attesa
C8: Squadra G | D8: SquadraH | E8: Pari | F8: 1.9 | H8: Over 2,5 | I8: 1.6 | K8: Nogoal | L8: 1.8 | N8: Over 3,5 | O8: 2.5 | S8: Over 1,5
C9: 12 Pronostici 10 su 12 in quartine - 6 Bolle | J9: V | S9: Over 2,5
C10: BOLLA 1 | S10: Over 3,5
C11: =+C5 -> Squadra A | D11: Squadra B | E11: =+E5 -> Pari | F11: =+F5 -> 1.9 | G11: =+G5 -> 0 | H11: Quota | I11: Vincita | S11: Under 1,5
C12: Squadra C | D12: Squadra D | E12: =+H6 -> Over 2,5 | F12: =+I6 -> 1.6 | G12: =+J6 -> 0 | H12: =+F11*F12*F13*F14 -> 13.68 | I12: =IFERROR(IF(AND(G11="V",G12="V",G13="V",G14="V"),+H14*H12,-H14),"") -> -291.5516566 | J12: =1-H12/(H12+H17+H22+H27+H32+H37+H42+H47+H52+H57+H62+H67) -> 0.9168370858 | S12: Under 2,5
C13: Squadra E | D13: Squadra F | E13: =+K7 -> Nogoal | F13: =+L7 -> 1.8 | G13: =+M7 -> 0 | H13: Puntata | I13: Guadagno | J13: =+J12/(J12+J17+J22+J27+J32+J37+J42+J47+J52+J57+J62+J67) -> 0.08330047332 | S13: Under 3,5
C14: Squadra G | D14: SquadraH | E14: =+N8 -> Over 3,5 | F14: =+O8 -> 2.5 | G14: =+P8 -> 0 | H14: =IFERROR(+J14,"") -> 291.5516566 | I14: =IFERROR(IF(OR(G11="P",G12="P",G13="P",G14="P"),-H14,(IF(AND(G11="V",G12="V",G13="V",G14="v"),+I12-H14,0))),"") -> 0 | J14: =+$D$3*J13 -> 291.5516566 | S14: Goal
C15: BOLLA 2 | S15: Nogoal
C16: =+C6 -> Squadra C | D16: =+D6 -> Squadra D | E16: =+E6 -> Pari | F16: =+F6 -> 1.9 | G16: =+G6 -> 0 | H16: Quota | I16: Vincita | S16: 1X
C17: =+C7 -> Squadra E | D17: =+D7 -> Squadra F | E17: =+H7 -> Over 2,5 | F17: =+I7 -> 1.6 | G17: =+J7 -> 0 | H17: =+F16*F17*F18*F19 -> 13.68 | I17: =IFERROR(IF(AND(G16="V",G17="V",G18="V",G19="V"),+H19*H17,-H19),"") -> -291.5516566 | J17: =1-H17/(H12+H17+H22+H27+H32+H37+H42+H47+H52+H57+H62+H67) -> 0.9168370858 | S17: X2
C18: =+C8 -> Squadra G | D18: =+D8 -> SquadraH | E18: =+K8 -> Nogoal | F18: =+L8 -> 1.8 | G18: =+M8 -> 0 | H18: Puntata | I18: Guadagno | J18: =+J17/(J12+J17+J22+J27+J32+J37+J42+J47+J52+J57+J62+J67) -> 0.08330047332 | S18: 12
C19: =+C5 -> Squadra A | D19: =+D5 -> Squadra B | E19: =+N5 -> Over 3,5 | F19: =+O5 -> 2.5 | G19: =+P5 -> 0 | H19: =IFERROR(+J19,"") -> 291.5516566 | I19: =IFERROR(IF(OR(G16="P",G17="P",G18="P",G19="P"),-H19,(IF(AND(G16="V",G17="V",G18="V",G19="v"),+I17-H19,0))),"") -> 0 | J19: =+$D$3*J18 -> 291.5516566 | S19: Pari
C20: BOLLA 3 | S20: Dispari
C21: =+C7 -> Squadra E | D21: =+D7 -> Squadra F | E21: =+E7 -> Pari | F21: =+F7 -> 1.9 | G21: =+G7 -> 0 | H21: Quota | I21: Vincita | S21: 12+Over 1,5
C22: =+C8 -> Squadra G | D22: =+D8 -> SquadraH | E22: =+H8 -> Over 2,5 | F22: =+I8 -> 1.6 | G22: =+J8 -> 0 | H22: =+F21*F22*F23*F24 -> 13.68 | I22: =IFERROR(IF(AND(G21="V",G22="V",G23="V",G24="V"),+H24*H22,-H24),"") -> -291.5516566 | J22: =1-H22/(H12+H17+H22+H27+H32+H37+H42+H47+H52+H57+H62+H67) -> 0.9168370858 | S22: 12+Over 2,5
C23: =+C5 -> Squadra A | D23: =+D5 -> Squadra B | E23: =+K5 -> Nogoal | F23: =+L5 -> 1.8 | G23: =+M5 -> 0 | H23: Puntata | I23: Guadagno | J23: =+J22/(J12+J17+J22+J27+J32+J37+J42+J47+J52+J57+J62+J67) -> 0.08330047332 | S23: 1X+Over 1,5
C24: =+C6 -> Squadra C | D24: =+D6 -> Squadra D | E24: =+N6 -> Over 3,5 | F24: =+O6 -> 2.5 | G24: 0 | H24: =IFERROR(+J24,"") -> 291.5516566 | I24: =IFERROR(IF(OR(G21="P",G22="P",G23="P",G24="P"),-H24,(IF(AND(G21="V",G22="V",G23="V",G24="v"),+I22-H24,0))),"") -> 0 | J24: =+$D$3*J23 -> 291.5516566 | S24: 1X+Over 2,5
C25: BOLLA 4 | S25: X2+Over 1,5
C26: =+C8 -> Squadra G | D26: =+D8 -> SquadraH | E26: =+E8 -> Pari | F26: =+F8 -> 1.9 | G26: 0 | H26: Quota | I26: Vincita | S26: X2+Over 2,5
C27: =+C5 -> Squadra A | D27: Squadra B | E27: =+H5 -> Over 2,5 | F27: =+I5 -> 1.6 | G27: 0 | H27: =+F26*F27*F28*F29 -> 13.68 | I27: =IFERROR(IF(AND(G26="V",G27="V",G28="V",G29="V"),+H29*H27,-H29),"") -> -291.5516566 | J27: =1-H27/(H12+H17+H22+H27+H32+H37+H42+H47+H52+H57+H62+H67) -> 0.9168370858 | S27: 12+Under 1,5
C28: Squadra C | D28: Squadra D | E28: =+K6 -> Nogoal | F28: =+L6 -> 1.8 | G28: 0 | H28: Puntata | I28: Guadagno | J28: =+J27/(J12+J17+J22+J27+J32+J37+J42+J47+J52+J57+J62+J67) -> 0.08330047332 | S28: 12+Under 2,5
C29: Squadra E | D29: Squadra F | E29: =+N7 -> Over 3,5 | F29: =+O7 -> 2.5 | G29: 0 | H29: =IFERROR(+J29,"") -> 291.5516566 | I29: =IFERROR(IF(OR(G26="P",G27="P",G28="P",G29="P"),-H29,(IF(AND(G26="V",G27="V",G28="V",G29="v"),+I27-H29,0))),"") -> 0 | J29: =+$D$3*J28 -> 291.5516566 | S29: 1X+Under 1,5
C30: BOLLA 5 | S30: 1X+Under 2,5
C31: =+C5 -> Squadra A | D31: Squadra B | E31: =+E5 -> Pari | F31: =+F5 -> 1.9 | G31: 0 | H31: Quota | I31: Vincita | S31: X2+Under 1,5
C32: =+C8 -> Squadra G | D32: =+D8 -> SquadraH | E32: =+H8 -> Over 2,5 | F32: =+I8 -> 1.6 | G32: 0 | H32: =+F31*F32*F33*F34 -> 13.68 | I32: =IFERROR(IF(AND(G31="V",G32="V",G33="V",G34="V"),+H34*H32,-H34),"") -> -291.5516566 | J32: =1-H32/(H12+H17+H22+H27+H32+H37+H42+H47+H52+H57+H62+H67) -> 0.9168370858 | S32: X2+Under 2,5
C33: =+C7 -> Squadra E | D33: =+D7 -> Squadra F | E33: =+K7 -> Nogoal | F33: =+L7 -> 1.8 | G33: 0 | H33: Puntata | I33: Guadagno | J33: =+J32/(J12+J17+J22+J27+J32+J37+J42+J47+J52+J57+J62+J67) -> 0.08330047332 | S33: 1X+Under 3,5
C34: =+C6 -> Squadra C | D34: =+D6 -> Squadra D | E34: =+N6 -> Over 3,5 | F34: =+O6 -> 2.5 | G34: 0 | H34: =IFERROR(+J34,"") -> 291.5516566 | I34: =IFERROR(IF(OR(G31="P",G32="P",G33="P",G34="P"),-H34,(IF(AND(G31="V",G32="V",G33="V",G34="v"),+I32-H34,0))),"") -> 0 | J34: =+$D$3*J33 -> 291.5516566 | S34: 12+Under 3,5
C35: BOLLA 6 | S35: X2+Under 3,5
C36: =+C6 -> Squadra C | D36: =+D6 -> Squadra D | E36: =+E6 -> Pari | F36: =+F6 -> 1.9 | G36: 0 | H36: Quota | I36: Vincita | S36: MG 0-3
C37: =+C5 -> Squadra A | D37: =+D5 -> Squadra B | E37: =+H5 -> Over 2,5 | F37: =+I5 -> 1.6 | G37: 0 | H37: =+F36*F37*F38*F39 -> 13.68 | I37: =IFERROR(IF(AND(G36="V",G37="V",G38="V",G39="V"),+H39*H37,-H39),"") -> -291.5516566 | J37: =1-H37/(H12+H17+H22+H27+H32+H37+H42+H47+H52+H57+H62+H67) -> 0.9168370858 | S37: MG 1-4
C38: =+C8 -> Squadra G | D38: =+D8 -> SquadraH | E38: =+K8 -> Nogoal | F38: =+L8 -> 1.8 | G38: 0 | H38: Puntata | I38: Guadagno | J38: =+J37/(J12+J17+J22+J27+J32+J37+J42+J47+J52+J57+J62+J67) -> 0.08330047332 | S38: MG 2-5
C39: =+C7 -> Squadra E | D39: =+D7 -> Squadra F | E39: =+N7 -> Over 3,5 | F39: =+O7 -> 2.5 | G39: 0 | H39: =IFERROR(+J39,"") -> 291.5516566 | I39: =IFERROR(IF(OR(G36="P",G37="P",G38="P",G39="P"),-H39,(IF(AND(G36="V",G37="V",G38="V",G39="v"),+I37-H39,0))),"") -> 0 | J39: =+$D$3*J38 -> 291.5516566 | S39: MG 2-6
C40: BOLLA 7 | S40: MG 3-6
C41: =+C7 -> Squadra E | D41: =+D7 -> Squadra F | E41: =+E7 -> Pari | F41: =+F7 -> 1.9 | G41: 0 | H41: Quota | I41: Vincita | S41: 0-0 1HT
C42: =+C6 -> Squadra C | D42: =+D6 -> Squadra D | E42: =+H6 -> Over 2,5 | F42: =+I6 -> 1.6 | G42: 0 | H42: =+F41*F42*F43*F44 -> 13.68 | I42: =IFERROR(IF(AND(G41="V",G42="V",G43="V",G44="V"),+H44*H42,-H44),"") -> -291.5516566 | J42: =1-H42/(H12+H17+H22+H27+H32+H37+H42+H47+H52+H57+H62+H67) -> 0.9168370858 | S42: 12goal 1HT
C43: =+C5 -> Squadra A | D43: =+D5 -> Squadra B | E43: =+K5 -> Nogoal | F43: =+L5 -> 1.8 | G43: 0 | H43: Puntata | I43: Guadagno | J43: =+J42/(J12+J17+J22+J27+J32+J37+J42+J47+J52+J57+J62+J67) -> 0.08330047332 | S43: 0-0/1-1/0-1/1-0
C44: =+C8 -> Squadra G | D44: =+D8 -> SquadraH | E44: =+N8 -> Over 3,5 | F44: =+O8 -> 2.5 | G44: 0 | H44: =IFERROR(+J44,"") -> 291.5516566 | I44: =IFERROR(IF(OR(G41="P",G42="P",G43="P",G44="P"),-H44,(IF(AND(G41="V",G42="V",G43="V",G44="v"),+I42-H44,0))),"") -> 0 | J44: =+$D$3*J43 -> 291.5516566 | S44: 2-0/2-1/3-0/3-1
C45: BOLLA 8 | S45: 0-2/1-2/0-3/1-3
C46: =+C8 -> Squadra G | D46: =+D8 -> SquadraH | E46: =+E8 -> Pari | F46: =+F8 -> 1.9 | G46: 0 | H46: Quota | I46: Vincita | S46: 2-2/2-3/3-2/3-3
C47: =+C7 -> Squadra E | D47: =+D7 -> Squadra F | E47: =+H7 -> Over 2,5 | F47: =+I7 -> 1.6 | G47: 0 | H47: =+F46*F47*F48*F49 -> 13.68 | I47: =IFERROR(IF(AND(G46="V",G47="V",G48="V",G49="V"),+H49*H47,-H49),"") -> -291.5516566 | J47: =1-H47/(H12+H17+H22+H27+H32+H37+H42+H47+H52+H57+H62+H67) -> 0.9168370858 | S47: 4-0/4-1/4-2/4-3
C48: =+C6 -> Squadra C | D48: =+D6 -> Squadra D | E48: =+K6 -> Nogoal | F48: =+L6 -> 1.8 | G48: 0 | H48: Puntata | I48: Guadagno | J48: =+J47/(J12+J17+J22+J27+J32+J37+J42+J47+J52+J57+J62+J67) -> 0.08330047332 | S48: 0-4/1-4/2-4/3-4
C49: =+C5 -> Squadra A | D49: =+D5 -> Squadra B | E49: =+N5 -> Over 3,5 | F49: =+O5 -> 2.5 | G49: 0 | H49: =IFERROR(+J49,"") -> 291.5516566 | I49: =IFERROR(IF(OR(G46="P",G47="P",G48="P",G49="P"),-H49,(IF(AND(G46="V",G47="V",G48="V",G49="v"),+I47-H49,0))),"") -> 0 | J49: =+$D$3*J48 -> 291.5516566 | S49: 4-4/Altro
C50: BOLLA 9
C51: =+C5 -> Squadra A | D51: Squadra B | E51: Pari | F51: =+F5 -> 1.9 | G51: 0 | H51: Quota | I51: Vincita
C52: Squadra C | D52: Squadra D | E52: Pari | F52: =+F6 -> 1.9 | G52: 0 | H52: =+F51*F52*F53*F54 -> 11.6964 | I52: =IFERROR(IF(AND(G51="V",G52="V",G53="V",G54="V"),+H54*H52,-H54),"") -> -295.3862652 | J52: =1-H52/(H12+H17+H22+H27+H32+H37+H42+H47+H52+H57+H62+H67) -> 0.9288957084
C53: =+C7 -> Squadra E | D53: =+D7 -> Squadra F | E53: =+K7 -> Nogoal | F53: =+L7 -> 1.8 | G53: 0 | H53: Puntata | I53: Guadagno | J53: =+J52/(J12+J17+J22+J27+J32+J37+J42+J47+J52+J57+J62+J67) -> 0.08439607578
C54: =+C8 -> Squadra G | D54: =+D8 -> SquadraH | E54: =+K8 -> Nogoal | F54: =+L8 -> 1.8 | G54: 0 | H54: =IFERROR(+J54,"") -> 295.3862652 | I54: =IFERROR(IF(OR(G51="P",G52="P",G53="P",G54="P"),-H54,(IF(AND(G51="V",G52="V",G53="V",G54="v"),+I52-H54,0))),"") -> 0 | J54: =+$D$3*J53 -> 295.3862652
C55: BOLLA 10
C56: =+C7 -> Squadra E | D56: =+D7 -> Squadra F | E56: =+H7 -> Over 2,5 | F56: =+I7 -> 1.6 | G56: 0 | H56: Quota | I56: Vincita
C57: =+C8 -> Squadra G | D57: =+D8 -> SquadraH | E57: =+E8 -> Pari | F57: =+F8 -> 1.9 | G57: 0 | H57: =+F56*F57*F58*F59 -> 13.68 | I57: =IFERROR(IF(AND(G56="V",G57="V",G58="V",G59="V"),+H59*H57,-H59),"") -> -291.5516566 | J57: =1-H57/(H12+H17+H22+H27+H32+H37+H42+H47+H52+H57+H62+H67) -> 0.9168370858
C58: =+C5 -> Squadra A | D58: =+D5 -> Squadra B | E58: =+K5 -> Nogoal | F58: =+L5 -> 1.8 | G58: 0 | H58: Puntata | I58: Guadagno | J58: =+J57/(J12+J17+J22+J27+J32+J37+J42+J47+J52+J57+J62+J67) -> 0.08330047332
C59: =+C6 -> Squadra C | D59: =+D6 -> Squadra D | E59: =+N6 -> Over 3,5 | F59: =+O6 -> 2.5 | G59: 0 | H59: =IFERROR(+J59,"") -> 291.5516566 | I59: =IFERROR(IF(OR(G56="P",G57="P",G58="P",G59="P"),-H59,(IF(AND(G56="V",G57="V",G58="V",G59="v"),+I57-H59,0))),"") -> 0 | J59: =+$D$3*J58 -> 291.5516566
C60: BOLLA 11
C61: =+C5 -> Squadra A | D61: Squadra B | E61: =+H5 -> Over 2,5 | F61: =+I5 -> 1.6 | G61: 0 | H61: Quota | I61: Vincita
C62: Squadra C | D62: Squadra D | E62: =+H6 -> Over 2,5 | F62: =+I6 -> 1.6 | G62: 0 | H62: =+F61*F62*F63*F64 -> 16 | I62: =IFERROR(IF(AND(G61="V",G62="V",G63="V",G64="V"),+H64*H62,-H64),"") -> -287.0667343 | J62: =1-H62/(H12+H17+H22+H27+H32+H37+H42+H47+H52+H57+H62+H67) -> 0.9027334337
C63: Squadra E | D63: Squadra F | E63: =+N7 -> Over 3,5 | F63: =+O7 -> 2.5 | G63: 0 | H63: Puntata | I63: Guadagno | J63: =+J62/(J12+J17+J22+J27+J32+J37+J42+J47+J52+J57+J62+J67) -> 0.08201906693
C64: Squadra G | D64: SquadraH | E64: =+N8 -> Over 3,5 | F64: =+O8 -> 2.5 | G64: 0 | H64: =IFERROR(+J64,"") -> 287.0667343 | I64: =IFERROR(IF(OR(G61="P",G62="P",G63="P",G64="P"),-H64,(IF(AND(G61="V",G62="V",G63="V",G64="v"),+I62-H64,0))),"") -> 0 | J64: =+$D$3*J63 -> 287.0667343
C65: BOLLA 12
C66: =+C7 -> Squadra E | D66: =+D7 -> Squadra F | E66: =+E7 -> Pari | F66: =+F7 -> 1.9 | G66: 0 | H66: Quota | I66: Vincita
C67: =+C14 -> Squadra G | D67: =+D8 -> SquadraH | E67: =+H8 -> Over 2,5 | F67: =+I8 -> 1.6 | G67: 0 | H67: =+F66*F67*F68*F69 -> 13.68 | I67: =IFERROR(IF(AND(G66="V",G67="V",G68="V",G69="V"),+H69*H67,-H69),"") -> -293.582091 | J67: =1-H67/(H12+H17+H22+H27+H32+H37+H42+H47+H52+H57+H62+H67+H67) -> 0.9232221551
C68: =+C5 -> Squadra A | D68: =+D5 -> Squadra B | E68: =+N5 -> Over 3,5 | F68: =+O5 -> 2.5 | G68: 0 | H68: Puntata | I68: Guadagno | J68: =+J67/(J12+J17+J22+J27+J32+J37+J42+J47+J52+J57+J62+J67) -> 0.08388059743
C69: =+C6 -> Squadra C | D69: =+D6 -> Squadra D | E69: =+K6 -> Nogoal | F69: =+L6 -> 1.8 | G69: 0 | H69: =IFERROR(+J69,"") -> 293.582091 | I69: =IFERROR(IF(OR(G66="P",G67="P",G68="P",G69="P"),-H69,(IF(AND(G66="V",G67="V",G68="V",G69="v"),+I67-H69,0))),"") -> 0 | J69: =+$D$3*J68 -> 293.582091
C71: V | D71: =COUNTIF(G5:G8,"V")+COUNTIF(J5:J8,"V")+COUNTIF(M5:M8,"V")+COUNTIF(P5:P8,"V") -> 0 | E71: =IFERROR(+D71/(D71+D72),"") ->  | F71: CASSA | H71: Vincita Totale | I71: =IFERROR(+I12+I17+I22+I27+I32+I37+I42+I47+I52+I57+I62+I67,"") -> -3500
C72: P | D72: =COUNTIF(G5:G8,"P")+COUNTIF(J5:J8,"P")+COUNTIF(M5:M8,"P")+COUNTIF(P5:P8,"P") -> 0 | E72: =IFERROR(+D72/(D71+D72),"") ->  | F72: =IFERROR(+J3+I72,"") -> 0 | H72: Guadagno Totale | I72: =IFERROR(+I14+I19+I24+I29+I34+I39+I44+I49+I54+I59+I64+I69,"") -> 0

Sheet Foglio2
A1: ARCHIVIO
A2: =SUM(A4:A700000) -> 60892.96 | B2: =SUM(B4:B700000) -> -4802.23 | C2: -4802.23 | D2: -4802.23 | E2: -4802.23 | F2: -4802.23 | G2: 60892.96 | H2: -4802.23 | I2: -4865.41 | J2: -4802.23 | K2: -4728.45 | L2: -4835.7 | M2: =AVERAGE(M4:M700000) -> 0.75 | N2: =AVERAGE(N4:N700000) -> 0.25 | O2: 83344.69 | P2: 73740.13 | Q2: 57650
A3: 1° Bolla | B3: 2° Bolla | C3: 3° Bolla | D3: 4° Bolla | E3: 5° Bolla | F3: 6° Bolla | G3: 7° Bolla | H3: 8° Bolla | I3: 9° Bolla | J3: 10° Bolla | K3: 11° Bolla | L3: 12° Bolla | M3: Vinte | N3: Perse | O3: Ricavo | P3: Guadagno | Q3: Puntata
A4: 26.41 | B4: -2.08 | C4: -2.08 | D4: -2.08 | E4: -2.08 | F4: -2.08 | G4: 26.41 | H4: -2.08 | I4: -2.11 | J4: -2.08 | K4: -2.05 | L4: -2.1 | M4: 0.75 | N4: 0.25 | O4: 36.14 | P4: 31.98 | Q4: 25
A5: 26.41 | B5: -2.08 | C5: -2.08 | D5: -2.08 | E5: -2.08 | F5: -2.08 | G5: 26.41 | H5: -2.08 | I5: -2.11 | J5: -2.08 | K5: -2.05 | L5: -2.1 | M5: 0.75 | N5: 0.25 | O5: 36.14 | P5: 31.98 | Q5: 25
A6: 26.41 | B6: -2.08 | C6: -2.08 | D6: -2.08 | E6: -2.08 | F6: -2.08 | G6: 26.41 | H6: -2.08 | I6: -2.11 | J6: -2.08 | K6: -2.05 | L6: -2.1 | M6: 0.75 | N6: 0.25 | O6: 36.14 | P6: 31.98 | Q6: 25
A7: 26.41 | B7: -2.08 | C7: -2.08 | D7: -2.08 | E7: -2.08 | F7: -2.08 | G7: 26.41 | H7: -2.08 | I7: -2.11 | J7: -2.08 | K7: -2.05 | L7: -2.1 | M7: 0.75 | N7: 0.25 | O7: 36.14 | P7: 31.98 | Q7: 25
A8: 26.41 | B8: -2.08 | C8: -2.08 | D8: -2.08 | E8: -2.08 | F8: -2.08 | G8: 26.41 | H8: -2.08 | I8: -2.11 | J8: -2.08 | K8: -2.05 | L8: -2.1 | M8: 0.75 | N8: 0.25 | O8: 36.14 | P8: 31.98 | Q8: 25
A9: 26.41 | B9: -2.08 | C9: -2.08 | D9: -2.08 | E9: -2.08 | F9: -2.08 | G9: 26.41 | H9: -2.08 | I9: -2.11 | J9: -2.08 | K9: -2.05 | L9: -2.1 | M9: 0.75 | N9: 0.25 | O9: 36.14 | P9: 31.98 | Q9: 25
A10: 1584.38 | B10: -124.95 | C10: -124.95 | D10: -124.95 | E10: -124.95 | F10: -124.95 | G10: 1584.38 | H10: -124.95 | I10: -126.59 | J10: -124.95 | K10: -123.03 | L10: -125.82 | M10: 0.75 | N10: 0.25 | O10: 2168.55 | P10: 1918.65 | Q10: 1500
A11: 1584.38 | B11: -124.95 | C11: -124.95 | D11: -124.95 | E11: -124.95 | F11: -124.95 | G11: 1584.38 | H11: -124.95 | I11: -126.59 | J11: -124.95 | K11: -123.03 | L11: -125.82 | M11: 0.75 | N11: 0.25 | O11: 2168.55 | P11: 1918.65 | Q11: 1500
A12: 1584.38 | B12: -124.95 | C12: -124.95 | D12: -124.95 | E12: -124.95 | F12: -124.95 | G12: 1584.38 | H12: -124.95 | I12: -126.59 | J12: -124.95 | K12: -123.03 | L12: -125.82 | M12: 0.75 | N12: 0.25 | O12: 2168.55 | P12: 1918.65 | Q12: 1500
A13: 1584.38 | B13: -124.95 | C13: -124.95 | D13: -124.95 | E13: -124.95 | F13: -124.95 | G13: 1584.38 | H13: -124.95 | I13: -126.59 | J13: -124.95 | K13: -123.03 | L13: -125.82 | M13: 0.75 | N13: 0.25 | O13: 2168.55 | P13: 1918.65 | Q13: 1500
A14: 1584.38 | B14: -124.95 | C14: -124.95 | D14: -124.95 | E14: -124.95 | F14: -124.95 | G14: 1584.38 | H14: -124.95 | I14: -126.59 | J14: -124.95 | K14: -123.03 | L14: -125.82 | M14: 0.75 | N14: 0.25 | O14: 2168.55 | P14: 1918.65 | Q14: 1500
A15: 1584.38 | B15: -124.95 | C15: -124.95 | D15: -124.95 | E15: -124.95 | F15: -124.95 | G15: 1584.38 | H15: -124.95 | I15: -126.59 | J15: -124.95 | K15: -123.03 | L15: -125.82 | M15: 0.75 | N15: 0.25 | O15: 2168.55 | P15: 1918.65 | Q15: 1500
A16: 1584.38 | B16: -124.95 | C16: -124.95 | D16: -124.95 | E16: -124.95 | F16: -124.95 | G16: 1584.38 | H16: -124.95 | I16: -126.59 | J16: -124.95 | K16: -123.03 | L16: -125.82 | M16: 0.75 | N16: 0.25 | O16: 2168.55 | P16: 1918.65 | Q16: 1500
A17: 1584.38 | B17: -124.95 | C17: -124.95 | D17: -124.95 | E17: -124.95 | F17: -124.95 | G17: 1584.38 | H17: -124.95 | I17: -126.59 | J17: -124.95 | K17: -123.03 | L17: -125.82 | M17: 0.75 | N17: 0.25 | O17: 2168.55 | P17: 1918.65 | Q17: 1500
A18: 1584.38 | B18: -124.95 | C18: -124.95 | D18: -124.95 | E18: -124.95 | F18: -124.95 | G18: 1584.38 | H18: -124.95 | I18: -126.59 | J18: -124.95 | K18: -123.03 | L18: -125.82 | M18: 0.75 | N18: 0.25 | O18: 2168.55 | P18: 1918.65 | Q18: 1500
A19: 1584.38 | B19: -124.95 | C19: -124.95 | D19: -124.95 | E19: -124.95 | F19: -124.95 | G19: 1584.38 | H19: -124.95 | I19: -126.59 | J19: -124.95 | K19: -123.03 | L19: -125.82 | M19: 0.75 | N19: 0.25 | O19: 2168.55 | P19: 1918.65 | Q19: 1500
A20: 1584.38 | B20: -124.95 | C20: -124.95 | D20: -124.95 | E20: -124.95 | F20: -124.95 | G20: 1584.38 | H20: -124.95 | I20: -126.59 | J20: -124.95 | K20: -123.03 | L20: -125.82 | M20: 0.75 | N20: 0.25 | O20: 2168.55 | P20: 1918.65 | Q20: 1500
A21: 1584.38 | B21: -124.95 | C21: -124.95 | D21: -124.95 | E21: -124.95 | F21: -124.95 | G21: 1584.38 | H21: -124.95 | I21: -126.59 | J21: -124.95 | K21: -123.03 | L21: -125.82 | M21: 0.75 | N21: 0.25 | O21: 2168.55 | P21: 1918.65 | Q21: 1500
A22: 1584.38 | B22: -124.95 | C22: -124.95 | D22: -124.95 | E22: -124.95 | F22: -124.95 | G22: 1584.38 | H22: -124.95 | I22: -126.59 | J22: -124.95 | K22: -123.03 | L22: -125.82 | M22: 0.75 | N22: 0.25 | O22: 2168.55 | P22: 1918.65 | Q22: 1500
A23: 1584.38 | B23: -124.95 | C23: -124.95 | D23: -124.95 | E23: -124.95 | F23: -124.95 | G23: 1584.38 | H23: -124.95 | I23: -126.59 | J23: -124.95 | K23: -123.03 | L23: -125.82 | M23: 0.75 | N23: 0.25 | O23: 2168.55 | P23: 1918.65 | Q23: 1500
A24: 1584.38 | B24: -124.95 | C24: -124.95 | D24: -124.95 | E24: -124.95 | F24: -124.95 | G24: 1584.38 | H24: -124.95 | I24: -126.59 | J24: -124.95 | K24: -123.03 | L24: -125.82 | M24: 0.75 | N24: 0.25 | O24: 2168.55 | P24: 1918.65 | Q24: 1500
A25: 3696.88 | B25: -291.55 | C25: -291.55 | D25: -291.55 | E25: -291.55 | F25: -291.55 | G25: 3696.88 | H25: -291.55 | I25: -295.39 | J25: -291.55 | K25: -287.07 | L25: -293.58 | M25: 0.75 | N25: 0.25 | O25: 5059.96 | P25: 4476.85 | Q25: 3500
A26: 3696.88 | B26: -291.55 | C26: -291.55 | D26: -291.55 | E26: -291.55 | F26: -291.55 | G26: 3696.88 | H26: -291.55 | I26: -295.39 | J26: -291.55 | K26: -287.07 | L26: -293.58 | M26: 0.75 | N26: 0.25 | O26: 5059.96 | P26: 4476.85 | Q26: 3500
A27: 3696.88 | B27: -291.55 | C27: -291.55 | D27: -291.55 | E27: -291.55 | F27: -291.55 | G27: 3696.88 | H27: -291.55 | I27: -295.39 | J27: -291.55 | K27: -287.07 | L27: -293.58 | M27: 0.75 | N27: 0.25 | O27: 5059.96 | P27: 4476.85 | Q27: 3500
A28: 3696.88 | B28: -291.55 | C28: -291.55 | D28: -291.55 | E28: -291.55 | F28: -291.55 | G28: 3696.88 | H28: -291.55 | I28: -295.39 | J28: -291.55 | K28: -287.07 | L28: -293.58 | M28: 0.75 | N28: 0.25 | O28: 5059.96 | P28: 4476.85 | Q28: 3500
A29: 3696.88 | B29: -291.55 | C29: -291.55 | D29: -291.55 | E29: -291.55 | F29: -291.55 | G29: 3696.88 | H29: -291.55 | I29: -295.39 | J29: -291.55 | K29: -287.07 | L29: -293.58 | M29: 0.75 | N29: 0.25 | O29: 5059.96 | P29: 4476.85 | Q29: 3500
A30: 3696.88 | B30: -291.55 | C30: -291.55 | D30: -291.55 | E30: -291.55 | F30: -291.55 | G30: 3696.88 | H30: -291.55 | I30: -295.39 | J30: -291.55 | K30: -287.07 | L30: -293.58 | M30: 0.75 | N30: 0.25 | O30: 5059.96 | P30: 4476.85 | Q30: 3500
A31: 3696.88 | B31: -291.55 | C31: -291.55 | D31: -291.55 | E31: -291.55 | F31: -291.55 | G31: 3696.88 | H31: -291.55 | I31: -295.39 | J31: -291.55 | K31: -287.07 | L31: -293.58 | M31: 0.75 | N31: 0.25 | O31: 5059.96 | P31: 4476.85 | Q31: 3500
A32: 3696.88 | B32: -291.55 | C32: -291.55 | D32: -291.55 | E32: -291.55 | F32: -291.55 | G32: 3696.88 | H32: -291.55 | I32: -295.39 | J32: -291.55 | K32: -287.07 | L32: -293.58 | M32: 0.75 | N32: 0.25 | O32: 5059.96 | P32: 4476.85 | Q32: 3500
A33: 3696.88 | B33: -291.55 | C33: -291.55 | D33: -291.55 | E33: -291.55 | F33: -291.55 | G33: 3696.88 | H33: -291.55 | I33: -295.39 | J33: -291.55 | K33: -287.07 | L33: -293.58 | M33: 0.75 | N33: 0.25 | O33: 5059.96 | P33: 4476.85 | Q33: 3500
A34: 3696.88 | B34: -291.55 | C34: -291.55 | D34: -291.55 | E34: -291.55 | F34: -291.55 | G34: 3696.88 | H34: -291.55 | I34: -295.39 | J34: -291.55 | K34: -287.07 | L34: -293.58 | M34: 0.75 | N34: 0.25 | O34: 5059.96 | P34: 4476.85 | Q34: 3500

Sheet Foglio3

Sheet Foglio4 (hidden)
A4: 31.98
A5: 63.96
A6: 95.94
A7: 127.92
A8: 159.9
A9: 191.88
A10: 2110.53
A11: 4029.18
A12: 5947.83
A13: 7866.48
A14: 9785.13
A15: 11703.78
A16: 13622.43
A17: 15541.08
A18: 17459.73
A19: 19378.38
A20: 21297.03
A21: 23215.68
A22: 25134.33
A23: 27052.98
A24: 28971.63
A25: 33448.48
A26: 37925.33
A27: 42402.18
A28: 46879.03
A29: 51355.88
A30: 55832.73
A31: 60309.58
A32: 64786.43
A33: 69263.28
A34: 73740.13
